fUSD/lending_fUSD_20250219
["ID","MTS","AMOUNT","RATE_DAILY","PERIOD"]
[353646448,1739981438628,-500.0,0.00013199,2]
[353646450,1739981438637,-1440.08,0.00013199,2]
[353646452,1739981438646,-3073.73,0.00013199,2]
[353646454,1739981438655,-500.0,0.00013199,2]
[353646456,1739981438667,-749.49,0.00013199,2]
[353646459,1739981438686,-1664.91,0.00013199,2]
[353646461,1739981438696,-1453.44,0.00013199,2]
[353646463,1739981438706,-1783.85,0.00013199,2]
[353646465,1739981438715,-3722.51,0.00013199,2]
[353646467,1739981438724,-53942.47987614,0.000132,2]
[353646468,1739981438734,-24453.0261004,0.000132,2]
[353646471,1739981438744,-322.75674454,0.000132,2]
[353646473,1739981438755,-80889.64320231,0.000132,2]
[353646475,1739981438764,-1000.0,0.000132,2]
[353646477,1739981438774,-4437.587,0.00013213,2]
[353646479,1739981438784,-150.0,0.00013227,2]
[353646481,1739981438794,-6974.50663371,0.00013229,2]
[353646483,1739981438804,-9249.59478979,0.00013233,2]
[353646485,1739981438813,-219.18838361,0.00013238,2]
[353646486,1739981438823,-1908.72,0.00013249,2]
[353646489,1739981438833,-1724.21,0.00013249,2]
[353646491,1739981438843,-1183.16,0.00013249,2]
[353646492,1739981438852,-3635.95,0.00013249,2]
[353646494,1739981438861,-508.07,0.00013249,2]
[353646497,1739981438871,-2957.13,0.00013249,2]
[353646499,1739981438882,-1260.75,0.00013249,2]
[353646501,1739981438892,-3370.75,0.00013249,2]
[353646503,1739981438901,-4466.71,0.00013249,2]
[353646505,1739981438911,-2861.46,0.00013249,2]
[353646507,1739981438920,-1037.25,0.00013249,2]
[353646509,1739981438930,-4057.21,0.00013249,2]
[353646510,1739981438939,-500.0,0.00013249,2]
[353646513,1739981438948,-1354.31,0.00013249,2]
[353646515,1739981438958,-1288.25,0.00013249,2]
[353646517,1739981438969,-152.680738,0.00013249,2]
[353646519,1739981438978,-3219.78,0.00013249,2]
[353646521,1739981438989,-500.0,0.00013249,2]
[353646522,1739981439000,-1678.83,0.0001325,2]
[353646524,1739981439009,-1847.3542,0.0001325,2]
[353646527,1739981439019,-1846.29,0.0001325,2]
[353646528,1739981439028,-1592.48,0.0001325,2]
[353646530,1739981439038,-1773.020173,0.0001325,2]
[353646532,1739981439048,-2705.75,0.0001325,2]
[353646535,1739981439059,-500.0,0.0001325,2]
[353646537,1739981439069,-159.64705,0.0001325,2]
[353646538,1739981439079,-2407.49,0.0001325,2]
[353646541,1739981439090,-767.18,0.0001325,2]
[353646543,1739981439100,-1005.99,0.0001325,2]
[353646545,1739981439109,-500.0,0.0001325,2]
[353646547,1739981439119,-1902.19,0.0001325,2]
[353646549,1739981439128,-2400.24,0.0001325,2]
[353646551,1739981439138,-161.165809,0.0001325,2]
[353646553,1739981439147,-2120.53,0.0001325,2]
[353646555,1739981439157,-2293.3,0.0001325,2]
[353646557,1739981439167,-2929.98,0.0001325,2]
[353646559,1739981439176,-173.842051,0.0001325,2]
[353646561,1739981439186,-4447.72,0.0001325,2]
[353646563,1739981439196,-1962.14,0.0001325,2]
[353646565,1739981439206,-2210.96,0.0001325,2]
[353646567,1739981439217,-500.0,0.0001325,2]
[353646569,1739981439227,-3551.16,0.0001325,2]
[353646571,1739981439238,-2946.14,0.0001325,2]
[353646573,1739981439247,-2431.17,0.0001325,2]
[353646575,1739981439257,-1020.84,0.0001325,2]
[353646576,1739981439268,-5965.08,0.0001325,2]
[353646578,1739981439278,-9795.57,0.0001325,2]
[353646580,1739981439287,-500.0,0.0001325,2]
[353646582,1739981439300,-1863.21,0.0001325,2]
[353646584,1739981439310,-3674.44,0.0001325,2]
[353646586,1739981439320,-1362.54,0.0001325,2]
[353646588,1739981439329,-4172.34,0.0001325,2]
[353646590,1739981439340,-2438.27,0.0001325,2]
[353646592,1739981439350,-161.165806,0.0001325,2]
[353646594,1739981439359,-2658.27,0.0001325,2]
[353646596,1739981439369,-173.842047,0.0001325,2]
[353646598,1739981439378,-586.28,0.0001325,2]
[353646600,1739981439388,-2845.19,0.0001325,2]
[353646602,1739981439398,-417.45744964,0.0001325,2]
[353646604,1739981439408,-300.0,0.0001325,2]
[353646606,1739981439418,-500.0,0.00013251,2]
[353646608,1739981439427,-500.0,0.00013251,2]
[353646610,1739981439437,-500.0,0.00013251,2]
[353646612,1739981439447,-587.39,0.00013251,2]
[353646614,1739981439456,-500.0,0.00013251,2]
[353646616,1739981439466,-500.0,0.00013251,2]
[353646618,1739981439476,-411.76254545,0.00013251,2]
[353646620,1739981439485,-500.0,0.00013251,2]
[353646622,1739981439494,-500.0,0.00013251,2]
[353646624,1739981439503,-500.0,0.00013251,2]
[353646626,1739981439512,-1168.17,0.00013251,2]
[353646628,1739981439522,-1235.18,0.00013251,2]
[353646630,1739981439532,-500.0,0.00013251,2]
[353646632,1739981439542,-500.0,0.00013251,2]
[353646634,1739981439553,-500.0,0.00013251,2]
[353646636,1739981439563,-515.08,0.00013251,2]
[353646638,1739981439574,-500.0,0.00013251,2]
[353646640,1739981439583,-500.0,0.00013251,2]
[353646642,1739981439593,-500.0,0.00013251,2]
[353646644,1739981439602,-500.0,0.00013251,2]
[353646646,1739981439612,-500.0,0.00013251,2]
[353646648,1739981439622,-500.0,0.00013251,2]
[353646650,1739981439632,-500.0,0.00013251,2]
[353646652,1739981439643,-613.79,0.00013251,2]
[353646654,1739981439652,-500.0,0.00013251,2]
[353646656,1739981439662,-500.0,0.00013251,2]
[353646658,1739981439672,-500.0,0.00013251,2]
[353646661,1739981439682,-500.0,0.00013251,2]
[353646663,1739981439692,-500.0,0.00013251,2]
[353646664,1739981439701,-500.0,0.00013251,2]
[353646666,1739981439711,-835.95,0.00013251,2]
[353646669,1739981439720,-500.0,0.00013251,2]
[353646671,1739981439730,-500.0,0.00013251,2]
[353646673,1739981439740,-727.59,0.00013251,2]
[353646675,1739981439749,-500.0,0.00013251,2]
[353646676,1739981439759,-500.0,0.00013251,2]
[353646679,1739981439768,-1297.65,0.00013251,2]
[353646681,1739981439778,-500.0,0.00013251,2]
[353646682,1739981439787,-500.0,0.00013251,2]
[353646683,1739981439801,-500.0,0.00013251,2]
[353646684,1739981439811,-500.0,0.00013251,2]
[353646685,1739981439822,-500.0,0.00013251,2]
[353646686,1739981439832,-500.0,0.00013251,2]
[353646687,1739981439841,-500.0,0.00013251,2]
[353646688,1739981439851,-500.0,0.00013251,2]
[353646689,1739981439860,-500.0,0.00013251,2]
[353646690,1739981439870,-1049.75,0.00013251,2]
[353646691,1739981439880,-500.0,0.00013251,2]
[353646692,1739981439890,-500.0,0.00013251,2]
[353646694,1739981439900,-500.0,0.00013251,2]
[353646696,1739981439909,-1342.98,0.00013251,2]
[353646698,1739981439919,-500.0,0.00013251,2]
[353646700,1739981439929,-506.37582476,0.00013251,2]
[353646702,1739981439939,-500.0,0.00013251,2]
[353646704,1739981439948,-867.0,0.00013251,2]
[353646706,1739981439957,-719.27,0.00013251,2]
[353646708,1739981439966,-1030.03,0.00013251,2]
[353646710,1739981439975,-645.82430726,0.00013251,2]
[353646712,1739981439984,-548.74,0.00013251,2]
[353646714,1739981439994,-500.0,0.00013251,2]
[353646715,1739981440003,-1391.91,0.00013251,2]
[353646718,1739981440013,-500.0,0.00013251,2]
[353646720,1739981440024,-500.0,0.00013251,2]
[353646722,1739981440033,-500.0,0.00013251,2]
[353646724,1739981440043,-500.0,0.00013251,2]
[353646726,1739981440055,-591.81,0.00013251,2]
[353646728,1739981440065,-680.74,0.00013251,2]
[353646730,1739981440075,-500.0,0.00013251,2]
[353646732,1739981440085,-500.0,0.00013251,2]
[353646734,1739981440095,-500.0,0.00013251,2]
[353646736,1739981440104,-500.0,0.00013251,2]
[353646737,1739981440114,-500.0,0.00013251,2]
[353646739,1739981440124,-605.62,0.00013251,2]
[353646741,1739981440133,-719.0,0.00013251,2]
[353646743,1739981440143,-500.0,0.00013251,2]
[353646745,1739981440153,-500.0,0.00013251,2]
[353646747,1739981440162,-500.0,0.00013251,2]
[353646749,1739981440173,-851.56,0.00013251,2]
[353646751,1739981440183,-858.88,0.00013251,2]
[353646753,1739981440193,-500.0,0.00013251,2]
[353646755,1739981440202,-500.0,0.00013251,2]
[353646757,1739981440216,-500.0,0.00013251,2]
[353646759,1739981440226,-614.55,0.00013251,2]
[353646761,1739981440235,-500.0,0.00013251,2]
[353646763,1739981440245,-525.51,0.00013251,2]
[353646765,1739981440254,-500.0,0.00013251,2]
[353646767,1739981440264,-500.0,0.00013251,2]
[353646769,1739981440274,-500.0,0.00013251,2]
[353646771,1739981440284,-500.0,0.00013251,2]
[353646773,1739981440293,-969.29,0.00013251,2]
[353646775,1739981440303,-500.0,0.00013251,2]
[353646777,1739981440313,-197.07077989,0.00013251,2]
[353646779,1739981440323,-500.0,0.00013251,2]
[353646781,1739981440332,-578.62,0.00013251,2]
[353646783,1739981440342,-500.0,0.00013251,2]
[353646785,1739981440351,-684.04,0.00013251,2]
[353646787,1739981440360,-659.34,0.00013251,2]
[353646789,1739981440370,-500.0,0.00013251,2]
[353646791,1739981440380,-814.31,0.00013251,2]
[353646793,1739981440390,-500.0,0.00013251,2]
[353646795,1739981440400,-573.2,0.00013251,2]
[353646798,1739981440410,-538.36711023,0.00013251,2]
[353646800,1739981440420,-500.0,0.00013251,2]
[353646801,1739981440430,-500.0,0.00013251,2]
[353646803,1739981440440,-1087.37,0.00013251,2]
[353646805,1739981440450,-514.93277202,0.00013251,2]
[353646807,1739981440459,-467.11962893,0.00013251,2]
[353646809,1739981440469,-547.4974279,0.00013251,2]
[353646811,1739981440479,-847.22,0.00013251,2]
[353646813,1739981440489,-500.0,0.00013251,2]
[353646816,1739981440498,-500.0,0.00013251,2]
[353646818,1739981440508,-1103.2,0.00013251,2]
[353646820,1739981440517,-953.51,0.00013251,2]
[353646822,1739981440527,-405.36660524,0.00013251,2]
[353646824,1739981440537,-500.0,0.00013251,2]
[353646826,1739981440546,-500.0,0.00013251,2]
[353646828,1739981440557,-500.0,0.00013251,2]
[353646830,1739981440567,-297.05026784,0.00013251,2]
[353646939,1739981441620,-150.0,0.0001241,2]
[353646941,1739981441629,-150.0,0.00012535,2]
[353646943,1739981441638,-150.0,0.00012538,2]
[353646945,1739981441647,-150.0,0.00012642,2]
[353646947,1739981441656,-150.0,0.00012735,2]
[353646949,1739981441666,-150.0,0.0001277,2]
[353646951,1739981441675,-150.0,0.00012844,2]
[353646953,1739981441684,-150.0,0.00012891,2]
[353646955,1739981441694,-150.0,0.00012989,2]
[353646957,1739981441703,-150.0,0.00013014,2]
[353646959,1739981441712,-500.0,0.00013199,2]
[353646961,1739981441722,-2996.47,0.0001325,2]
[353646963,1739981441731,-140.58041261,0.00013251,2]
[353646965,1739981441740,-500.0,0.00013251,2]
[353646967,1739981441749,-757.2,0.00013251,2]
[353646969,1739981441759,-505.39347653,0.00013251,2]
[353646971,1739981441769,-505.35125592,0.00013251,2]
[353646973,1739981441778,-1161.96,0.00013251,2]
[353646975,1739981441788,-524.39424397,0.00013251,2]
[353646977,1739981441798,-500.0,0.00013251,2]
[353646979,1739981441809,-500.0,0.00013251,2]
[353646981,1739981441819,-1434.63,0.00013251,2]
[353646983,1739981441828,-313.37449628,0.00013251,2]
[353646985,1739981441838,-500.0,0.00013251,2]
[353646987,1739981441848,-500.0,0.00013251,2]
[353646989,1739981441857,-500.0,0.00013251,2]
[353646991,1739981441867,-500.0,0.00013251,2]
[353646993,1739981441876,-500.0,0.00013251,2]
[353646995,1739981441885,-500.0,0.00013251,2]
[353646997,1739981441895,-721.96,0.00013251,2]
[353646999,1739981441905,-500.0,0.00013251,2]
[353647001,1739981441915,-500.0,0.00013251,2]
[353647003,1739981441925,-518.00187235,0.00013251,2]
[353647005,1739981441934,-500.0,0.00013251,2]
[353647007,1739981441943,-500.0,0.00013251,2]
[353647009,1739981441953,-500.0,0.00013251,2]
[353647011,1739981441962,-500.0,0.00013251,2]
[353647013,1739981441972,-500.0,0.00013251,2]
[353647015,1739981441981,-500.0,0.00013251,2]
[353647017,1739981441990,-500.0,0.00013251,2]
[353647019,1739981442000,-500.0,0.00013251,2]
[353647021,1739981442009,-500.0,0.00013251,2]
[353647023,1739981442018,-593.41,0.00013251,2]
[353647025,1739981442027,-500.0,0.00013251,2]
[353647027,1739981442037,-500.0,0.00013251,2]
[353647029,1739981442046,-523.25088065,0.00013251,2]
[353647031,1739981442056,-500.0,0.00013251,2]
[353647033,1739981442065,-500.0,0.00013251,2]
[353647035,1739981442075,-500.0,0.00013251,2]
[353647037,1739981442085,-500.0,0.00013251,2]
[353647039,1739981442094,-500.0,0.00013251,2]
[353647041,1739981442103,-500.0,0.00013251,2]
[353647043,1739981442112,-500.0,0.00013251,2]
[353647045,1739981442121,-500.0,0.00013251,2]
[353647047,1739981442131,-500.0,0.00013251,2]
[353647049,1739981442141,-500.0,0.00013251,2]
[353647051,1739981442150,-514.55,0.00013251,2]
[353647053,1739981442160,-500.0,0.00013251,2]
[353647055,1739981442171,-625.22632406,0.00013251,2]
[353647057,1739981442181,-500.0,0.00013251,2]
[353647059,1739981442190,-500.0,0.00013251,2]
[353647061,1739981442199,-658.19,0.00013251,2]
[353647063,1739981442212,-500.0,0.00013251,2]
[353647066,1739981442222,-500.0,0.00013251,2]
[353647067,1739981442231,-500.0,0.00013251,2]
[353647070,1739981442241,-500.0,0.00013251,2]
[353647071,1739981442251,-500.0,0.00013251,2]
[353647074,1739981442260,-500.0,0.00013251,2]
[353647076,1739981442269,-500.0,0.00013251,2]
[353647077,1739981442278,-500.0,0.00013251,2]
[353647080,1739981442288,-500.0,0.00013251,2]
[353647081,1739981442297,-154.90988496,0.00013251,2]
[353647083,1739981442308,-907.8,0.00013251,2]
[353647086,1739981442318,-500.0,0.00013251,2]
[353647087,1739981442327,-500.0,0.00013251,2]
[353647089,1739981442336,-500.0,0.00013251,2]
[353647091,1739981442346,-500.0,0.00013251,2]
[353647092,1739981442355,-500.0,0.00013251,2]
[353647093,1739981442365,-500.0,0.00013251,2]
[353647094,1739981442375,-500.0,0.00013251,2]
[353647095,1739981442384,-500.0,0.00013251,2]
[353647096,1739981442394,-500.0,0.00013251,2]
[353647097,1739981442403,-518.56,0.00013251,2]
[353647098,1739981442412,-842.91,0.00013251,2]
[353647099,1739981442422,-500.0,0.00013251,2]
[353647100,1739981442432,-500.0,0.00013251,2]
[353647102,1739981442440,-910.58,0.00013251,2]
[353647104,1739981442450,-500.0,0.00013251,2]
[353647106,1739981442459,-500.0,0.00013251,2]
[353647108,1739981442468,-500.0,0.00013251,2]
[353647110,1739981442477,-500.0,0.00013251,2]
[353647112,1739981442485,-500.0,0.00013251,2]
[353647114,1739981442494,-500.0,0.00013251,2]
[353647116,1739981442503,-500.0,0.00013251,2]
[353647118,1739981442512,-500.0,0.00013251,2]
[353647120,1739981442521,-1700.48,0.00013251,2]
[353647122,1739981442530,-459.18519204,0.00013251,2]
[353647123,1739981442539,-500.0,0.00013251,2]
[353647126,1739981442548,-500.0,0.00013251,2]
[353647127,1739981442559,-500.0,0.00013251,2]
[353647129,1739981442569,-500.0,0.00013251,2]
[353647131,1739981442579,-483.30665721,0.00013251,2]
[353647133,1739981442588,-500.0,0.00013251,2]
[353647135,1739981442597,-1467.07,0.00013251,2]
[353647137,1739981442607,-846.23,0.00013251,2]
[353647139,1739981442616,-500.0,0.00013251,2]
[353647141,1739981442625,-654.58,0.00013251,2]
[353647143,1739981442634,-500.0,0.00013251,2]
[353647145,1739981442644,-500.0,0.00013251,2]
[353647147,1739981442653,-508.72,0.00013251,2]
[353647149,1739981442663,-500.0,0.00013251,2]
[353647151,1739981442673,-500.0,0.00013251,2]
[353647153,1739981442682,-886.41,0.00013251,2]
[353647155,1739981442691,-500.0,0.00013251,2]
[353647157,1739981442701,-500.0,0.00013251,2]
[353647159,1739981442709,-500.0,0.00013251,2]
[353647161,1739981442718,-500.0,0.00013251,2]
[353647163,1739981442728,-500.0,0.00013251,2]
[353647165,1739981442737,-500.0,0.00013251,2]
[353647167,1739981442747,-500.0,0.00013251,2]
[353647169,1739981442756,-500.0,0.00013251,2]
[353647171,1739981442766,-216.82367758,0.00013251,2]
[353647173,1739981442775,-578.97,0.00013251,2]
[353647175,1739981442785,-1547.71,0.00013251,2]
[353647177,1739981442794,-500.0,0.00013251,2]
[353647179,1739981442804,-1667.54,0.00013251,2]
[353647181,1739981442814,-500.0,0.00013251,2]
[353647183,1739981442823,-500.0,0.00013251,2]
[353647185,1739981442832,-500.0,0.00013251,2]
[353647187,1739981442841,-679.7,0.00013251,2]
[353647189,1739981442852,-500.0,0.00013251,2]
[353647191,1739981442861,-512.51,0.00013251,2]
[353647193,1739981442871,-500.57214654,0.00013251,2]
[353647195,1739981442880,-672.54,0.00013251,2]
[353647197,1739981442889,-771.34,0.00013251,2]
[353647199,1739981442898,-1642.33,0.00013251,2]
[353647201,1739981442908,-254.91259575,0.00013251,2]
[353647203,1739981442919,-623.02,0.00013251,2]
[353647205,1739981442929,-500.0,0.00013251,2]
[353647207,1739981442938,-700.88,0.00013251,2]
[353647209,1739981442948,-1763.07,0.00013251,2]
[353647211,1739981442957,-260.26621049,0.00013251,2]
[353647213,1739981442968,-1058.8,0.00013251,2]
[353647215,1739981442977,-500.0,0.00013251,2]
[353647217,1739981442987,-500.0,0.00013251,2]
[353647219,1739981442996,-500.0,0.00013251,2]
[353647222,1739981443005,-600.7,0.00013251,2]
[353647226,1739981443016,-1534.82,0.00013251,2]
[353647229,1739981443025,-1442.91,0.00013251,2]
[353647231,1739981443035,-745.68,0.00013251,2]
[353647234,1739981443044,-838.32,0.00013251,2]
[353647237,1739981443053,-500.0,0.00013251,2]
[353647240,1739981443062,-500.0,0.00013251,2]
[353647243,1739981443071,-500.0,0.00013251,2]
[353647246,1739981443080,-1071.12,0.00013251,2]
[353647248,1739981443089,-586.27,0.00013251,2]
[353647252,1739981443099,-500.0,0.00013251,2]
[353647256,1739981443108,-1123.84,0.00013251,2]
[353647261,1739981443117,-2348.96,0.00013251,2]
[353647264,1739981443126,-500.0,0.00013251,2]
[353647268,1739981443136,-500.0,0.00013251,2]
[353647270,1739981443147,-1050.15,0.00013251,2]
[353647273,1739981443156,-881.06,0.00013251,2]
[353647275,1739981443165,-500.0,0.00013251,2]
[353647277,1739981443175,-500.0,0.00013251,2]
[353647279,1739981443184,-500.0,0.00013251,2]
[353647281,1739981443193,-500.0,0.00013251,2]
[353647283,1739981443203,-500.0,0.00013251,2]
[353647285,1739981443212,-507.03484675,0.00013251,2]
[353647287,1739981443225,-500.0,0.00013251,2]
[353647289,1739981443234,-1721.94,0.00013251,2]
[353647291,1739981443243,-500.0,0.00013251,2]
[353647293,1739981443253,-500.0,0.00013251,2]
[353647295,1739981443263,-500.0,0.00013251,2]
[353647297,1739981443272,-500.0,0.00013251,2]
[353647299,1739981443282,-1774.14,0.00013251,2]
[353647301,1739981443291,-500.0,0.00013251,2]
[353647303,1739981443302,-2626.88,0.00013251,2]
[353647304,1739981443313,-500.0,0.00013251,2]
[353647307,1739981443322,-4378.38,0.00013251,2]
[353647308,1739981443331,-4564.78,0.00013251,2]
[353647310,1739981443341,-500.0,0.00013251,2]
[353647313,1739981443351,-500.0,0.00013251,2]
[353647315,1739981443361,-500.0,0.00013251,2]
[353647317,1739981443370,-505.03281762,0.00013251,2]
[353647319,1739981443379,-1219.89,0.00013251,2]
[353647321,1739981443389,-500.0,0.00013251,2]
[353647323,1739981443398,-837.92,0.00013251,2]
[353647325,1739981443407,-1220.63,0.00013251,2]
[353647326,1739981443417,-705.79,0.00013251,2]
[353647329,1739981443426,-750.7,0.00013251,2]
[353647331,1739981443435,-2297.88,0.00013251,2]
[353647332,1739981443445,-362.49654168,0.00013251,2]
[353647334,1739981443454,-1406.06,0.00013251,2]
[353647336,1739981443463,-598.52,0.00013251,2]
[353647339,1739981443473,-500.0,0.00013251,2]
[353647341,1739981443484,-4306.96,0.00013251,2]
[353647343,1739981443493,-500.0,0.00013251,2]
[353647345,1739981443503,-850.64,0.00013251,2]
[353647347,1739981443512,-1548.92,0.00013251,2]
[353647349,1739981443521,-4046.57,0.00013251,2]
[353647352,1739981443531,-500.0,0.00013251,2]
[353647354,1739981443540,-500.0,0.00013251,2]
[353647356,1739981443550,-500.0,0.00013251,2]
[353647358,1739981443561,-1817.06,0.00013251,2]
[353647360,1739981443570,-506.53681326,0.00013251,2]
[353647362,1739981443579,-579.94,0.00013251,2]
[353647365,1739981443589,-537.41,0.00013251,2]
[353647367,1739981443599,-3247.97,0.00013251,2]
[353647369,1739981443608,-1393.67,0.00013251,2]
[353647370,1739981443617,-580.53679647,0.00013251,2]
[353647373,1739981443641,-500.0,0.00013251,2]
[353647375,1739981443650,-3207.33,0.00013251,2]
[353647377,1739981443659,-500.0,0.00013251,2]
[353647379,1739981443669,-500.0,0.00013251,2]
[353647380,1739981443679,-508.67113656,0.00013251,2]
[353647383,1739981443688,-500.0,0.00013251,2]
[353647385,1739981443698,-500.0,0.00013251,2]
[353647387,1739981443708,-1068.57,0.00013251,2]
[353647389,1739981443717,-500.0,0.00013251,2]
[353647390,1739981443727,-3221.83,0.00013251,2]
[353647392,1739981443736,-500.0,0.00013251,2]
[353647394,1739981443746,-500.0,0.00013251,2]
[353647396,1739981443756,-509.24,0.00013251,2]
[353647399,1739981443766,-1032.47,0.00013251,2]
[353647400,1739981443776,-943.7,0.00013251,2]
[353647402,1739981443785,-500.0,0.00013251,2]
[353647404,1739981443794,-500.0,0.00013251,2]
[353647406,1739981443804,-2527.73,0.00013251,2]
[353647408,1739981443813,-561.48,0.00013251,2]
[353647410,1739981443823,-500.0,0.00013251,2]
[353647412,1739981443832,-1480.58,0.00013251,2]
[353647414,1739981443841,-2707.66,0.00013251,2]
[353647416,1739981443851,-500.0,0.00013251,2]
[353647418,1739981443861,-500.0,0.00013251,2]
[353647420,1739981443870,-3022.84,0.00013251,2]
[353647422,1739981443879,-705.48,0.00013251,2]
[353647424,1739981443888,-500.0,0.00013251,2]
[353647426,1739981443898,-500.0,0.00013251,2]
[353647428,1739981443907,-1400.94,0.00013251,2]
[353647431,1739981443919,-500.0,0.00013251,2]
[353647433,1739981443927,-1048.08,0.00013251,2]
[353647434,1739981443936,-523.15,0.00013251,2]
[353647436,1739981443946,-737.53,0.00013251,2]
[353647438,1739981443955,-151.0,0.00013251,2]
[353647440,1739981443964,-500.0,0.00013251,2]
[353647442,1739981443974,-934.73,0.00013251,2]
[353647444,1739981443983,-500.0,0.00013251,2]
[353647446,1739981443993,-500.0,0.00013251,2]
[353647449,1739981444002,-591.76,0.00013251,2]
[353647451,1739981444012,-151.0,0.00013251,2]
[353647453,1739981444021,-2935.54,0.00013251,2]
[353647455,1739981444030,-500.0,0.00013251,2]
[353647457,1739981444039,-516.54581176,0.00013251,2]
[353647458,1739981444049,-500.0,0.00013251,2]
[353647460,1739981444058,-919.89,0.00013251,2]
[353647462,1739981444067,-500.0,0.00013251,2]
[353647464,1739981444076,-500.0,0.00013251,2]
[353647466,1739981444086,-500.0,0.00013251,2]
[353647468,1739981444095,-1631.66,0.00013251,2]
[353647470,1739981444104,-358.6845447,0.00013251,2]
[353647472,1739981444114,-1630.74,0.00013251,2]
[353647474,1739981444123,-535.69654043,0.00013251,2]
[353647477,1739981444132,-500.0,0.00013251,2]
[353647479,1739981444141,-1488.16,0.00013251,2]
[353647480,1739981444150,-500.0,0.00013251,2]
[353647482,1739981444160,-500.0,0.00013251,2]
[353647484,1739981444170,-151.0,0.00013251,2]
[353647487,1739981444180,-151.0,0.00013251,2]
[353647488,1739981444189,-853.84,0.00013251,2]
[353647490,1739981444198,-500.0,0.00013251,2]
[353647492,1739981444208,-531.89,0.00013251,2]
[353647494,1739981444219,-550.84,0.00013251,2]
[353647496,1739981444228,-500.0,0.00013251,2]
[353647498,1739981444238,-500.0,0.00013251,2]
[353647500,1739981444248,-500.0,0.00013251,2]
[353647502,1739981444259,-500.0,0.00013251,2]
[353647504,1739981444268,-500.0,0.00013251,2]
[353647506,1739981444277,-500.0,0.00013251,2]
[353647508,1739981444288,-1229.87,0.00013251,2]
[353647510,1739981444298,-2787.49,0.00013251,2]
[353647513,1739981444312,-420.50485896,0.00013251,2]
[353647515,1739981444321,-500.0,0.00013251,2]
[353647517,1739981444330,-735.14,0.00013251,2]
[353647519,1739981444340,-500.0,0.00013251,2]
[353647521,1739981444349,-500.0,0.00013251,2]
[353647523,1739981444358,-500.0,0.00013251,2]
[353647525,1739981444368,-2404.94,0.00013251,2]
[353647527,1739981444378,-500.0,0.00013251,2]
[353647529,1739981444387,-500.0,0.00013251,2]
[353647531,1739981444397,-198.208733,0.00013251,2]
[353647533,1739981444406,-500.0,0.00013251,2]
[353647535,1739981444415,-500.0,0.00013251,2]
[353647537,1739981444424,-500.0,0.00013251,2]
[353647539,1739981444433,-500.0,0.00013251,2]
[353647541,1739981444442,-500.0,0.00013251,2]
[353647543,1739981444451,-198.208733,0.00013251,2]
[353647545,1739981444461,-1357.32,0.00013251,2]
[353647547,1739981444470,-500.0,0.00013251,2]
[353647549,1739981444479,-500.0,0.00013251,2]
[353647551,1739981444489,-868.88,0.00013251,2]
[353647553,1739981444499,-658.88,0.00013251,2]
[353647555,1739981444508,-500.0,0.00013251,2]